bitfinex/quotes_BTCUSD_20250225
["timestamp","ask_amount","ask_price","bid_price","bid_amount"]
[1740496369434,0.171774,87324.0,87298.0,0.0824]
[1740496369629,0.17175,87336.0,87335.0,0.0685022]
[1740496369836,0.11374753,87336.0,87305.0,0.034423]
[1740496370080,0.11374753,87336.0,87295.0,0.18196]
[1740496370081,0.171803,87309.0,87308.0,0.0685022]
[1740496370356,0.11374753,87334.0,87315.0,0.0685022]
[1740496370495,0.171793,87314.0,87313.0,0.0685022]
[1740496370696,0.0453,87340.0,87320.0,0.0685022]
[1740496370894,0.11374753,87340.0,87332.0,0.0685022]
[1740496371101,0.00853292,87360.0,87332.0,0.0685022]
[1740496371302,0.00853292,87360.0,87338.0,0.0685022]
[1740496371507,0.171732,87345.0,87338.0,0.0685022]
[1740496371827,0.3,87363.0,87343.0,0.0685022]
[1740496372392,0.1723799,87344.0,87343.0,0.0685022]
[1740496372610,0.11439343,87344.0,87321.0,0.3]
[1740496372757,0.11439343,87344.0,87343.0,0.0685022]
[1740496372758,0.1723799,87344.0,87343.0,0.0685022]
[1740496372965,0.0006459,87344.0,87323.0,0.3]
[1740496373167,0.228984,87342.0,87323.0,0.3]
[1740496373399,0.171758,87332.0,87331.0,0.0685022]
[1740496373606,0.11374753,87341.0,87285.0,0.0499]
[1740496373607,0.11374753,87341.0,87323.0,0.0685022]
[1740496373811,0.33687934,87340.0,87301.0,0.0685022]
[1740496374035,0.171815,87303.0,87302.0,0.0685022]
[1740496374240,0.1,87314.0,87251.0,0.0825]
[1740496374443,0.1,87310.0,87283.0,0.0685022]
[1740496374642,0.3,87315.0,87293.0,0.0685022]
[1740496374962,0.3,87318.0,87293.0,0.0685022]
[1740496374963,0.229102,87297.0,87293.0,0.0685022]
[1740496375169,0.171823,87300.0,87299.0,0.0685022]
[1740496375475,0.171823,87300.0,87290.0,0.0685022]
[1740496375476,0.11374753,87300.0,87290.0,0.0685022]
[1740496375630,0.40095,87293.0,87292.0,0.0685022]
[1740496375827,0.11374753,87299.0,87283.0,0.001]
[1740496375828,0.34284453,87299.0,87293.0,0.0685022]
[1740496376168,0.13429293,87299.0,87283.0,0.001]
[1740496376347,0.171852,87284.0,87283.0,0.001]
[1740496376544,0.171852,87284.0,87283.0,0.0695022]
[1740496376919,0.11374753,87284.0,87283.0,0.001]
[1740496377130,0.1,87331.0,87300.0,0.0685022]
[1740496377330,0.171833,87294.0,87293.0,0.002]
[1740496377585,0.02013408,87304.0,87284.0,0.0685022]
[1740496377796,0.229106,87296.0,87287.0,0.0685022]
[1740496378003,0.3,87313.0,87290.0,0.0685022]
[1740496378233,0.11374753,87315.0,87290.0,0.0685022]
[1740496378647,0.171821,87300.0,87297.0,0.0685022]
[1740496378852,0.2291,87298.0,87251.0,0.0825]
[1740496379123,0.20535251,87299.0,87270.0,0.0685022]
[1740496379124,0.171879,87271.0,87270.0,0.0685022]
[1740496379330,0.3,87296.0,87274.0,0.0685022]
[1740496379628,0.171883,87269.0,87268.0,0.08304305]
[1740496379803,0.09160498,87290.0,87263.0,0.0685022]
[1740496380004,0.09160498,87281.0,87259.0,0.0685022]
[1740496380205,0.11374753,87281.0,87270.0,0.0685022]
[1740496380406,0.171874,87273.0,87272.0,0.0685022]
[1740496380612,0.09160498,87297.0,87272.0,0.0685022]
[1740496380809,0.09160498,87288.0,87264.0,0.0685022]
[1740496380971,0.09160498,87288.0,87268.0,0.007]
[1740496380972,0.171882,87269.0,87268.0,0.007]
[1740496381186,0.171917,87251.0,87250.0,0.00169]
[1740496381409,0.58566453,87251.0,87250.0,0.00169]
[1740496381610,0.58566453,87251.0,87250.0,1e-06]
[1740496381856,0.171961,87229.0,87228.0,0.0016886]
[1740496382064,0.28570853,87229.0,87228.0,0.0016886]
[1740496382400,0.09160498,87241.0,87228.0,0.0016886]
[1740496382401,0.0314978,87302.0,87253.0,0.0685022]
[1740496382539,0.0202937,87269.0,87256.0,0.0685022]
[1740496382887,0.171915,87252.0,87251.0,0.0685022]
[1740496383060,0.171915,87252.0,87243.0,0.0685022]
[1740496383061,0.171931,87244.0,87243.0,0.0685022]
[1740496383261,0.22926,87238.0,87230.0,0.0685022]
[1740496383502,0.171961,87229.0,87228.0,0.0017386]
[1740496383858,0.004,87251.0,87228.0,0.0017386]
[1740496384155,0.171961,87229.0,87228.0,0.0017386]
[1740496384356,0.471931,87244.0,87243.0,0.003]
[1740496384555,0.171959,87230.0,87228.0,0.0017386]
[1740496384800,0.171959,87231.0,87228.0,0.0017386]
[1740496385101,0.171961,87229.0,87228.0,0.0057386]
[1740496385329,0.3,87244.0,87228.0,0.0017386]
[1740496385529,0.229231,87249.0,87233.0,0.0685022]
[1740496385685,0.229231,87249.0,87228.0,0.0017386]
[1740496385686,0.1,87274.0,87240.0,0.0685022]
[1740496385844,0.11374753,87268.0,87249.0,0.0685022]
[1740496386047,0.17191,87255.0,87249.0,0.0685022]
[1740496386250,0.229197,87261.0,87249.0,0.0685022]
[1740496386251,0.229204,87259.0,87249.0,0.0685022]
[1740496386451,0.529181,87267.0,87249.0,0.0675022]
[1740496386651,0.01999455,87269.0,87256.0,0.0675022]
[1740496386891,0.01999455,87269.0,87234.0,0.39320956]
[1740496386892,0.11374753,87268.0,87254.0,0.0675022]
[1740496387118,0.004,87268.0,87255.0,0.0675022]
[1740496387270,0.171886,87267.0,87255.0,0.0675022]
[1740496387470,0.02148235,87269.0,87255.0,0.0675022]
[1740496387685,0.004,87267.0,87255.0,0.0675022]
[1740496388227,0.171907,87256.0,87255.0,0.0675022]
[1740496388391,0.171919,87250.0,87249.0,5e-05]
[1740496388641,0.171961,87229.0,87211.0,0.0016886]
[1740496388808,0.58570853,87229.0,87228.0,5e-05]
[1740496389007,0.171994,87212.0,87211.0,0.0016886]
[1740496389209,0.1,87226.0,87211.0,0.0016886]
[1740496389210,0.32085598,87241.0,87211.0,0.0016886]
[1740496389430,0.11374753,87231.0,87211.0,0.0016886]
[1740496389846,0.22922,87253.0,87221.0,0.0675022]
[1740496390002,0.11374753,87250.0,87230.0,0.0675022]
[1740496390201,0.171946,87237.0,87230.0,0.0675022]
[1740496390586,0.007,87231.0,87230.0,0.0675022]
[1740496390868,0.002,87231.0,87230.0,0.0675022]
[1740496391071,0.229176,87270.0,87211.0,0.11804107]
[1740496391072,0.1,87276.0,87251.0,0.0675022]
[1740496391279,0.01544,87280.0,87231.0,0.0675022]
[1740496391280,0.007,87250.0,87231.0,0.0675022]
[1740496391431,0.20535251,87249.0,87230.0,0.001]
[1740496391630,0.171994,87212.0,87211.0,0.0016886]
[1740496392036,0.11374753,87232.0,87211.0,0.0016886]
[1740496392250,0.11374753,87232.0,87216.0,0.0675022]
[1740496392251,0.01544,87231.0,87216.0,0.0675022]
[1740496392577,0.171994,87212.0,87211.0,0.0016886]
[1740496392796,0.28574153,87212.0,87211.0,0.0016886]
[1740496392993,0.58574153,87212.0,87211.0,0.0016886]
[1740496393141,0.68574153,87212.0,87211.0,6e-07]
[1740496394171,0.16643186,87182.0,87173.0,0.0675022]
[1740496394380,0.172091,87163.0,87114.0,0.16750498]
[1740496394574,0.11374753,87163.0,87147.0,0.0675022]
[1740496394775,0.11374753,87162.0,87151.0,0.0675022]
[1740496394978,0.3,87181.0,87114.0,0.0759]
[1740496394979,0.229363,87198.0,87169.0,0.0675022]
[1740496395175,0.003,87212.0,87187.0,0.0675022]
[1740496395402,0.02075254,87197.0,87157.0,0.00160585]
[1740496395603,0.02075254,87197.0,87156.0,0.1236]
[1740496395604,0.11374753,87190.0,87156.0,0.1236]
[1740496395805,0.02075254,87197.0,87156.0,0.1236]
[1740496395806,0.17204,87189.0,87185.0,0.0675022]
[1740496396039,0.02075254,87197.0,87185.0,0.0675022]
[1740496396212,0.11374753,87196.0,87188.0,0.0675022]
[1740496396418,0.11374753,87196.0,87163.0,0.3]
[1740496396651,0.11374753,87196.0,87188.0,0.0665022]
[1740496396812,0.229377,87193.0,87188.0,0.0665022]
[1740496397172,0.11374753,87192.0,87189.0,0.0665022]
[1740496397460,0.01544,87218.0,87196.0,0.0665022]
[1740496397680,0.01544,87218.0,87170.0,0.3]
[1740496397681,0.11374753,87217.0,87202.0,0.0665022]
[1740496397965,0.01544,87245.0,87202.0,0.0665022]
[1740496398168,0.11374753,87243.0,87230.0,0.0665022]
[1740496398461,0.09623372,87259.0,87238.0,0.0665022]
[1740496398666,0.02006264,87251.0,87246.0,0.0665022]
[1740496398803,0.02006264,87251.0,87250.0,0.0665022]
[1740496399016,0.02006264,87251.0,87250.0,0.35216873]
[1740496399218,0.02006264,87251.0,87250.0,0.48024973]
[1740496399419,0.1,87314.0,87274.0,0.171872]
[1740496399708,0.11374753,87305.0,87297.0,0.0595022]
[1740496400035,0.22905,87317.0,87297.0,0.0595022]
[1740496400036,0.3,87318.0,87297.0,0.0595022]
[1740496400246,0.11374753,87317.0,87302.0,0.0585022]
[1740496400649,0.11374753,87317.0,87285.0,0.0452]
[1740496400650,0.11374753,87317.0,87304.0,0.0585022]
[1740496400986,0.17179,87316.0,87304.0,0.0585022]
[1740496401220,0.171793,87314.0,87304.0,0.0585022]
[1740496401348,0.171811,87306.0,87304.0,0.0585022]
[1740496401547,0.0423421,87341.0,87290.0,0.0585022]
[1740496401548,0.02053383,87327.0,87290.0,0.0585022]
[1740496401753,0.11374753,87315.0,87295.0,0.0585022]
[1740496402165,0.11374753,87308.0,87268.0,0.0755]
[1740496402361,0.11374753,87308.0,87292.0,0.0585022]
[1740496402562,0.11374753,87308.0,87295.0,0.0585022]
[1740496403043,0.1718,87311.0,87295.0,0.0585022]
[1740496403251,0.02056661,87327.0,87304.0,0.003]
[1740496403462,0.11374753,87326.0,87310.0,0.0585022]
[1740496403855,0.171787,87317.0,87310.0,0.0585022]
[1740496404013,0.229029,87325.0,87310.0,0.0585022]
[1740496404218,0.11374753,87324.0,87310.0,0.0585022]
[1740496404822,0.3,87323.0,87303.0,0.0585022]
[1740496405047,0.3,87321.0,87297.0,0.0585022]
[1740496405224,0.11374753,87310.0,87268.0,0.0755]
[1740496405428,0.11374753,87304.0,87262.0,0.0477]
[1740496405632,0.3,87296.0,87266.0,0.0585022]
[1740496406035,0.171907,87256.0,87255.0,0.0585022]
[1740496406236,0.3,87275.0,87244.0,0.0585022]
[1740496406435,0.3,87275.0,87210.0,0.18196]
[1740496406436,0.11374753,87252.0,87225.0,0.0585022]
[1740496406636,0.3,87251.0,87221.0,0.0585022]
[1740496406866,0.11374753,87252.0,87197.0,0.0751]
[1740496406867,0.1,87246.0,87215.0,0.0585022]
[1740496407105,0.171994,87213.0,87212.0,0.0585022]
[1740496407319,0.3,87238.0,87221.0,0.0585022]
[1740496407507,0.01544,87253.0,87218.0,0.0585022]
[1740496407508,0.11374753,87237.0,87218.0,0.0585022]
[1740496407789,0.171951,87234.0,87220.0,0.0585022]
[1740496407949,0.034467,87265.0,87225.0,0.0585022]
[1740496408152,0.11374753,87249.0,87225.0,0.0585022]
[1740496408350,0.52925,87241.0,87215.0,0.002]
[1740496408593,0.11374753,87234.0,87215.0,0.0605022]
[1740496408736,0.11374753,87234.0,87218.0,0.0585022]
[1740496408934,0.17198,87220.0,87218.0,0.0585022]
[1740496409175,0.171986,87216.0,87215.0,0.002]
[1740496409379,0.28573353,87216.0,87215.0,0.002]
[1740496409604,0.229287,87227.0,87206.0,0.0585022]
[1740496409808,0.3,87225.0,87206.0,0.0585022]
[1740496409950,0.11374753,87225.0,87211.0,0.0585022]
[1740496410154,0.1,87266.0,87218.0,0.0585022]
[1740496410388,0.3,87251.0,87219.0,0.0585022]
[1740496410588,0.171956,87232.0,87221.0,0.0585022]
[1740496410796,0.171956,87232.0,87193.0,0.09163698]
[1740496410797,0.30175101,87231.0,87193.0,0.09163698]
[1740496411141,0.171994,87212.0,87211.0,0.004]
[1740496411332,0.3,87224.0,87193.0,0.09163698]
[1740496411536,0.3,87222.0,87194.0,0.00160545]
[1740496411751,0.3,87220.0,87195.0,0.00160537]
[1740496412050,0.001,87225.0,87195.0,0.00160537]
[1740496412252,0.3,87218.0,87193.0,0.09163698]
[1740496412470,0.3,87218.0,87194.0,0.11374753]
[1740496412794,0.3,87219.0,87194.0,0.11374753]
[1740496413485,0.001,87218.0,87203.0,0.09163698]
[1740496413649,0.001,87218.0,87204.0,0.11374753]
[1740496414172,0.001,87219.0,87204.0,0.11374753]
[1740496414417,0.3,87227.0,87204.0,0.28575753]
[1740496414544,0.0008456,87300.0,87204.0,0.28575753]
[1740496414545,0.001,87219.0,87215.0,0.3]
[1740496414747,0.229134,87285.0,87237.0,0.171945]
[1740496414952,0.0008456,87300.0,87237.0,0.16435199]
[1740496415149,0.00175101,87299.0,87237.0,0.16435199]
[1740496415408,0.00175101,87299.0,87251.0,0.0754]
[1740496415608,0.00175101,87299.0,87252.0,0.00160419]
[1740496415924,0.229121,87290.0,87253.0,0.229218]
[1740496416107,0.01951002,87300.0,87262.0,0.09163698]
[1740496416108,0.00175101,87289.0,87262.0,0.09163698]
[1740496416338,0.0008456,87300.0,87263.0,0.11374753]
[1740496416540,0.11374753,87299.0,87264.0,0.0493]
[1740496416754,0.00200506,87298.0,87265.0,0.11374753]
[1740496416967,0.3,87296.0,87264.0,0.0493]
[1740496417170,0.171829,87296.0,87269.0,0.171882]
[1740496417372,0.11374753,87295.0,87264.0,0.0493]
[1740496417501,0.11374753,87294.0,87268.0,0.1]
[1740496417704,0.3,87293.0,87264.0,0.1493]
[1740496417932,0.3,87290.0,87268.0,0.1]
[1740496418132,0.3,87271.0,87268.0,0.1]
[1740496418359,0.43527098,87303.0,87264.0,0.0493]
[1740496418360,0.01844205,87315.0,87279.0,0.1]
[1740496418516,0.11449338,87314.0,87292.0,0.1]
[1740496418768,0.11449338,87314.0,87269.0,0.11374753]
[1740496418769,0.11449338,87314.0,87294.0,0.1]
[1740496419170,0.11449338,87314.0,87269.0,0.11374753]
[1740496419527,0.11449338,87314.0,87284.0,0.1]
[1740496420070,0.11449338,87314.0,87282.0,0.1]
[1740496420270,0.3,87298.0,87268.0,0.1]
[1740496420471,0.41374753,87289.0,87257.0,0.1]
[1740496420726,0.41374753,87289.0,87243.0,0.0485]
[1740496420727,0.3,87275.0,87243.0,0.0485]
[1740496421012,0.171888,87267.0,87259.0,0.1]
[1740496421153,0.00074585,87272.0,87251.0,0.1]
[1740496421360,0.3,87268.0,87239.0,0.1]
[1740496421620,0.3,87249.0,87232.0,0.1]
[1740496421842,0.3,87247.0,87239.0,0.1]
[1740496422038,0.3,87247.0,87214.0,0.00160496]
[1740496422039,0.3,87247.0,87244.0,0.1]
[1740496422822,0.171934,87243.0,87240.0,0.1]
[1740496423025,0.171937,87241.0,87240.0,0.1]
[1740496423229,0.171939,87240.0,87239.0,0.003]
[1740496423479,0.3,87252.0,87234.0,0.1]
[1740496423720,0.3,87250.0,87240.0,0.1]
[1740496423896,0.3,87249.0,87240.0,0.1]
[1740496424098,0.229231,87248.0,87240.0,0.1]
[1740496424300,0.0008455,87247.0,87238.0,0.1]
[1740496424592,0.471929,87245.0,87244.0,0.005]
[1740496424801,0.58567653,87245.0,87244.0,0.005]
[1740496425618,0.0008455,87247.0,87246.0,0.1]
[1740496426025,0.0008455,87247.0,87236.0,0.1]
[1740496426199,0.171953,87233.0,87232.0,0.1]
[1740496426451,0.11374753,87233.0,87221.0,0.1]
[1740496426664,0.41449338,87232.0,87221.0,0.1]
[1740496426993,0.3,87226.0,87221.0,0.1]
[1740496427198,0.229278,87230.0,87219.0,0.1]
[1740496427352,0.001,87233.0,87222.0,0.1]
[1740496427560,0.001,87233.0,87200.0,5e-05]
[1740496427561,0.3,87231.0,87205.0,0.099]
[1740496427765,0.47204,87189.0,87180.0,0.099]
[1740496428082,0.229378,87193.0,87170.0,0.0475]
[1740496428083,0.472061,87178.0,87177.0,0.099]
[1740496428514,0.472061,87178.0,87169.0,0.099]
[1740496428515,0.3,87177.0,87169.0,0.099]
[1740496428665,0.3,87177.0,87135.0,0.09163698]
[1740496428666,0.11449338,87176.0,87143.0,0.0459]
[1740496428864,0.11374753,87173.0,87146.0,0.09328043]
[1740496429046,0.229434,87171.0,87159.0,0.09328043]
[1740496429424,0.172134,87141.0,87140.0,0.09497043]
[1740496429568,0.472134,87141.0,87140.0,0.00169]
[1740496429748,0.01900798,87178.0,87149.0,0.09328043]
[1740496429950,0.11374753,87175.0,87149.0,0.09328043]
[1740496430155,0.30074585,87174.0,87159.0,0.09628043]
[1740496430337,0.11374753,87173.0,87163.0,0.09328043]
[1740496430550,0.472089,87164.0,87163.0,0.09328043]
[1740496430750,0.17212,87148.0,87140.0,0.00169]
[1740496430951,0.17212,87148.0,87147.0,0.09328043]
[1740496431196,0.172134,87141.0,87140.0,0.00169]
[1740496431419,0.172131,87143.0,87140.0,0.09497043]
[1740496431714,0.472109,87154.0,87153.0,0.09328043]
[1740496431942,0.472134,87141.0,87140.0,0.00169]
[1740496432093,0.58588153,87141.0,87140.0,0.00169]
[1740496433227,0.58588153,87141.0,87140.0,0.00869]
[1740496433452,0.69137098,87141.0,87140.0,0.00669]
[1740496433748,0.58688153,87141.0,87140.0,0.01169]
[1740496433976,0.58588153,87141.0,87140.0,0.00169]
[1740496434386,0.16797142,87109.0,87107.0,0.09328043]
[1740496434594,0.3,87108.0,87107.0,0.09328043]
[1740496435306,0.01883133,87118.0,87117.0,0.09328043]
[1740496435533,0.01883133,87118.0,87117.0,0.20702796]
[1740496435681,0.002,87141.0,87117.0,0.20702796]
[1740496435895,0.002,87141.0,87108.0,0.46708614]
[1740496435896,0.002,87141.0,87140.0,0.09328043]
[1740496436233,0.01544,87174.0,87140.0,0.09328043]
[1740496436436,0.229431,87172.0,87140.0,0.09328043]
[1740496436721,0.11449338,87171.0,87153.0,0.09328043]
[1740496436916,0.09163698,87198.0,87168.0,0.09328043]
[1740496436917,0.172079,87169.0,87168.0,0.09328043]
[1740496437079,0.00074585,87196.0,87180.0,0.09328043]
[1740496437413,0.00074585,87196.0,87188.0,0.09228043]
[1740496437663,0.01868544,87197.0,87191.0,0.09228043]
[1740496437834,0.00074585,87196.0,87166.0,0.09228043]
[1740496438053,0.11374753,87193.0,87161.0,0.09228043]
[1740496438204,0.41374753,87180.0,87148.0,0.09228043]
[1740496438407,0.472134,87141.0,87140.0,0.0008456]
[1740496439629,0.3,87141.0,87140.0,0.0008456]
[1740496439838,0.472134,87141.0,87140.0,0.0008456]
[1740496440036,0.3,87141.0,87140.0,0.09712603]
[1740496440360,0.3,87141.0,87140.0,0.0048456]
[1740496440599,0.58588153,87141.0,87140.0,0.0098456]
[1740496440809,0.3,87141.0,87140.0,0.10212603]
[1740496441050,0.3,87141.0,87140.0,0.09312603]
[1740496441249,0.3,87141.0,87140.0,0.0058456]
[1740496441495,0.3,87141.0,87140.0,0.09812603]
[1740496441903,0.58588153,87141.0,87140.0,0.0058456]
[1740496442208,0.65604423,87141.0,87140.0,0.0058456]
[1740496442562,0.65604423,87141.0,87106.0,0.001691]
[1740496442563,0.172202,87107.0,87106.0,0.001691]
[1740496442764,0.28594953,87107.0,87106.0,0.001691]
[1740496442963,0.11374753,87107.0,87100.0,0.00174]
[1740496443192,0.472209,87103.0,87100.0,0.00174]
[1740496443388,0.58595653,87103.0,87100.0,0.00174]
[1740496443591,0.472209,87103.0,87100.0,0.00174]
[1740496443912,0.3,87103.0,87100.0,0.00174]
[1740496444225,0.172186,87115.0,87113.0,0.09228043]
[1740496444425,0.472188,87114.0,87113.0,0.09128043]
[1740496444569,0.3,87114.0,87113.0,0.09128043]
[1740496444772,0.3,87114.0,87100.0,0.00174]
[1740496444773,0.3,87114.0,87108.0,0.09028043]
[1740496444972,0.3,87111.0,87108.0,0.09028043]
[1740496445184,0.3,87113.0,87108.0,0.09028043]
[1740496445383,0.01544,87133.0,87108.0,0.09028043]
[1740496445384,0.172159,87129.0,87127.0,0.09028043]
[1740496445596,0.01544,87148.0,87102.0,0.0189786]
[1740496445597,0.11374753,87128.0,87102.0,0.0189786]
[1740496445798,0.11374753,87128.0,87102.0,0.11625903]
[1740496445799,0.172209,87103.0,87102.0,0.11625903]
[1740496446002,0.473209,87103.0,87102.0,0.0259786]
[1740496446442,0.473209,87103.0,87102.0,0.0189786]
[1740496446443,0.472209,87103.0,87102.0,0.0189786]
[1740496446706,0.58595653,87103.0,87102.0,0.0129786]
[1740496447101,0.58595653,87103.0,87102.0,0.0199786]
[1740496447102,0.5724625,87103.0,87102.0,0.0199786]
[1740496447406,0.5724625,87103.0,87060.0,0.229724]
[1740496447407,0.3,87102.0,87056.0,0.0471]
[1740496447600,0.22760449,87103.0,87056.0,0.0471]
[1740496447601,0.229655,87087.0,87064.0,0.09028043]
[1740496447831,0.41449338,87086.0,87066.0,0.09028043]
[1740496448041,0.472281,87067.0,87066.0,0.09028043]
[1740496448259,0.172291,87062.0,87056.0,0.09028043]
[1740496448522,0.3,87072.0,87062.0,0.09028043]
[1740496448805,0.3,87074.0,87065.0,0.09028043]
[1740496449063,0.01544,87093.0,87055.0,0.0016938]
[1740496449271,0.11374753,87091.0,87066.0,0.09028043]
[1740496449480,0.46667117,87062.0,87061.0,0.0026912]
[1740496449627,0.5804187,87062.0,87061.0,0.0016912]
[1740496449829,0.3,87062.0,87061.0,0.09197163]
[1740496450033,0.472291,87062.0,87061.0,0.0016912]
[1740496450465,0.00884994,87104.0,87061.0,0.0016912]
[1740496450684,0.00074585,87120.0,87099.0,0.36722305]
[1740496451011,0.0016928,87141.0,87120.0,0.09028043]
[1740496451218,0.172164,87126.0,87125.0,0.09028043]
[1740496451389,0.172164,87126.0,87099.0,0.36722305]
[1740496451390,0.17219,87113.0,87109.0,0.09028043]
[1740496451545,0.0200101,87141.0,87109.0,0.09028043]
[1740496451546,0.01544,87132.0,87109.0,0.09028043]
[1740496451754,0.11374753,87131.0,87110.0,0.36722305]
[1740496451958,0.172182,87117.0,87116.0,0.09028043]
[1740496452221,0.003,87120.0,87116.0,0.09028043]
[1740496452338,0.003,87120.0,87099.0,0.36722305]
[1740496452339,0.17219,87113.0,87112.0,0.08328043]
[1740496452544,0.11674753,87120.0,87099.0,0.36722305]
[1740496452545,0.1722,87108.0,87099.0,0.36722305]
[1740496452856,0.172215,87100.0,87099.0,0.36722305]
[1740496453056,0.172239,87088.0,87087.0,0.36722305]
[1740496453256,0.3,87087.0,87079.0,0.12918043]
[1740496453461,0.172255,87080.0,87079.0,0.08328043]
[1740496453649,0.172263,87076.0,87070.0,0.08328043]
[1740496453858,0.3,87085.0,87068.0,0.08328043]
[1740496454072,0.3,87083.0,87068.0,0.08328043]
[1740496454274,0.3,87081.0,87067.0,0.08328043]
[1740496454508,0.172291,87062.0,87061.0,0.0016912]
[1740496454711,0.58603853,87062.0,87061.0,0.0016912]
[1740496454909,0.58603853,87062.0,87061.0,2e-07]
[1740496454910,0.60459431,87062.0,87061.0,2e-07]
[1740496455114,0.472308,87053.0,87052.0,6e-07]
[1740496455265,0.472312,87051.0,87050.0,6e-07]
[1740496455470,0.3,87019.0,87018.0,0.08412683]
[1740496455675,0.58602822,87019.0,87018.0,0.0008464]
[1740496456111,0.41365222,87019.0,87018.0,0.0008464]
[1740496456290,0.58602822,87019.0,87018.0,0.0008464]
[1740496456557,0.17238,87017.0,87016.0,0.0008464]
[1740496456754,0.28687338,87017.0,87016.0,0.0008464]
[1740496456980,0.28612753,87017.0,87016.0,0.0008464]
[1740496457656,0.58612753,87017.0,87016.0,0.0008464]
[1740496458540,0.472439,86987.0,86986.0,0.08328043]
[1740496458787,0.3,86987.0,86986.0,0.08328043]
[1740496459702,0.001,87017.0,86991.0,0.08328043]
[1740496459951,0.01856888,86996.0,86986.0,0.08328043]
[1740496460175,0.001,86987.0,86986.0,0.09028043]
[1740496460344,0.002,86987.0,86986.0,0.09528043]
[1740496460542,0.001,86987.0,86986.0,0.09028043]
[1740496460763,0.172454,86980.0,86977.0,0.0008464]
[1740496460966,0.3,86986.0,86985.0,0.08328043]
[1740496461287,0.3,86986.0,86977.0,0.0008464]
[1740496461288,0.172411,87001.0,87000.0,0.08328043]
[1740496461465,0.001,87017.0,87003.0,0.08328043]
[1740496461667,0.11374753,87016.0,86999.0,0.08328043]
[1740496462015,0.11374753,87016.0,86977.0,0.0024556]
[1740496462016,0.172395,87009.0,87008.0,0.08328043]
[1740496462194,0.11374753,87009.0,87001.0,0.08328043]
[1740496462329,0.172413,87000.0,86999.0,0.08228043]
[1740496462759,0.3,87002.0,86999.0,0.08228043]
[1740496462942,0.172413,87000.0,86999.0,0.08228043]
[1740496463175,0.3,87002.0,87000.0,0.08228043]
[1740496463176,0.172411,87001.0,87000.0,0.08228043]
[1740496463358,0.17231569,87001.0,87000.0,0.08228043]
[1740496463558,0.17231569,87001.0,86986.0,0.36807115]
[1740496463559,0.3,87002.0,86995.0,0.08228043]
[1740496463755,0.3,87002.0,86986.0,0.36807115]
[1740496463756,0.172413,87001.0,87000.0,0.08228043]
[1740496464026,0.172413,87000.0,86999.0,0.006]
[1740496464232,0.11449338,87000.0,86964.0,0.08228043]
[1740496464452,0.00864039,86981.0,86945.0,0.0499]
[1740496464654,0.17252,86946.0,86945.0,0.0499]
[1740496464806,0.172545,86934.0,86930.0,0.0008481]
[1740496465309,0.41374753,86933.0,86930.0,0.0008481]
[1740496466321,0.41374753,86933.0,86932.0,0.00507]
[1740496466525,0.3,86933.0,86932.0,7e-05]
[1740496466720,0.172528,86943.0,86932.0,7e-05]
[1740496466985,0.44262305,86989.0,86932.0,7e-05]
[1740496466986,0.002,86933.0,86932.0,7e-05]
[1740496467194,0.002,86933.0,86932.0,0.12387]
[1740496467322,0.229957,86973.0,86934.0,0.230059]
[1740496467511,0.00074585,86987.0,86932.0,0.1254802]
[1740496467512,0.002,86933.0,86932.0,0.12387]
[1740496467715,0.002,86933.0,86932.0,0.23761753]
[1740496467916,0.002,86933.0,86932.0,0.12392]
[1740496468323,0.002,86933.0,86932.0,0.04542]
[1740496469169,0.002,86933.0,86932.0,0.04442]
[1740496469170,0.004,86933.0,86932.0,0.04442]
[1740496469589,0.002,86933.0,86932.0,0.04442]
[1740496470020,0.28729353,86933.0,86932.0,0.00105]
[1740496470347,0.230021,86949.0,86932.0,5e-05]
[1740496470553,0.3,86947.0,86932.0,5e-05]
[1740496470855,0.174546,86933.0,86932.0,0.00805]
[1740496471052,0.173546,86933.0,86932.0,0.00105]
[1740496472122,0.172546,86933.0,86932.0,5e-05]
[1740496472516,0.28703938,86933.0,86932.0,5e-05]
[1740496472722,0.58629353,86933.0,86932.0,5e-05]
[1740496472922,0.1456,86975.0,86932.0,5e-05]
[1740496473147,0.001,86933.0,86932.0,5e-05]
[1740496473278,0.002,86933.0,86932.0,0.00705]
[1740496473478,0.002,86933.0,86932.0,5e-05]
[1740496473679,0.001,86933.0,86932.0,0.003899]
[1740496474087,0.00074585,86960.0,86932.0,0.000899]
[1740496474291,0.46722305,87001.0,86934.0,0.01454085]
[1740496474292,0.00074585,86970.0,86934.0,0.01454085]
[1740496474496,0.229899,86995.0,86937.0,0.0454]
[1740496474720,0.02341159,86988.0,86948.0,0.01454085]
[1740496475087,0.02341159,86988.0,86952.0,0.11374753]
[1740496475384,0.11449338,86987.0,86941.0,0.18256]
[1740496475697,0.66722305,86977.0,86941.0,0.18256]
[1740496475920,0.00875258,86968.0,86932.0,0.002899]
[1740496476096,0.001,86933.0,86932.0,0.006899]
[1740496476297,0.001,86933.0,86932.0,0.179447]
[1740496476435,0.172508,86953.0,86932.0,0.34470853]
[1740496476639,0.172505,86954.0,86936.0,0.17254]
[1740496476858,0.3,86971.0,86941.0,0.003]
[1740496477058,0.00074585,86970.0,86942.0,0.11374753]
[1740496477297,0.11449338,86970.0,86943.0,0.11374753]
[1740496477617,0.11374753,86969.0,86932.0,0.006899]
[1740496477753,0.00074585,86970.0,86933.0,0.11374753]
[1740496477957,0.11374753,86969.0,86933.0,0.11374753]
[1740496478271,0.11374753,86969.0,86932.0,0.000899]
[1740496478272,0.3,86967.0,86932.0,0.000899]
[1740496478472,0.22998,86964.0,86932.0,0.000899]
[1740496478700,0.3,86962.0,86932.0,0.000899]
[1740496478847,0.3,86958.0,86932.0,0.000899]
[1740496479118,0.11449338,86957.0,86932.0,0.00097372]
[1740496479322,0.1,86994.0,86932.0,0.00097372]
[1740496479323,0.001,86954.0,86936.0,0.004]
[1740496479780,0.00074585,86953.0,86932.0,0.00202372]
[1740496479922,0.00856656,86972.0,86932.0,0.00102372]
[1740496479923,0.172515,86949.0,86932.0,0.00102372]